Workbook

Sheet MSU
B1: Ilpo Luukkonen | E1: 17.4.1961
B2: SUPERPESIS | E2: Runkosarja | I2: Kärkilyönnit (KL), pesänvälit | P2: Runkosarja TOP-30 | U2: Ylempi loppusarja | AB2: Ylempi loppusarja TOP-10 | AG2: Play off, voitot, voittoprosentti | AL2: Arvo-ottelut | AO2: Mitalit
B3: Vuosi | C3: Sija | D3: Seura | E3: OTT | F3: KUN | G3: LÖI | H3: TOI | I3: KL | J3: 0 > 1 | K3: 1 > 2 | L3: 2 > 3 | M3: 3 > k | N3: KL-% | P3: LÖI | Q3: TOI | R3: L+T | S3: KL | U3: OTT | V3: KUN | W3: LÖI | X3: TOI | Y3: KL | Z3: KL-% | AB3: LÖI | AC3: TOI | AD3: L+T | AE3: KL | AG3: Puolivälierät | AH3: Välierät | AI3: Pronssi | AJ3: Finaalit | AL3: IL | AM3: LL | AN3: Cup | AO3: K | AP3: H | AQ3: P
B4: 1980 | C4: 8. | D4: IPV | E4: 16 | F4: 0 | G4: 3 | H4: 7 | I4: 36 | J4: 15 | K4: 13 | L4: 5 | M4: 3 | N4: 41.8 %
B5: 1981 | C5: 1. | D5: IPV 2 | F5: suomensarja
B6: 1982 | C6: 4. | D6: IPV | E6: 13 | F6: 0 | G6: 5 | H6: 7 | I6: 34 | J6: 8 | K6: 9 | L6: 12 | M6: 5 | N6: 47.2 % | U6: 5 | V6: 0 | W6: 4 | X6: 1 | Y6: 12 | Z6: 50.0 % | AG6: Mitalisarja 4.
B7: 1983 | C7: 7. | D7: IPV | E7: 22 | F7: 1 | G7: 7 | H7: 17 | I7: 79 | J7: 29 | K7: 25 | L7: 17 | M7: 8 | N7: 47.0 %
B8: 1984 | C8: 4. | D8: KiU | E8: 14 | F8: 0 | G8: 1 | H8: 3 | I8: 19 | J8: 5 | K8: 9 | L8: 4 | M8: 1 | N8: 38.0 % | U8: 4 | V8: 0 | W8: 1 | X8: 2 | Y8: 10 | Z8: 40.0 % | AG8: Mitalisarja 4.
B9: 1985 | C9: 5. | D9: KiU | E9: 22 | F9: 0 | G9: 10 | H9: 15 | I9: 100 | J9: 44 | K9: 23 | L9: 23 | M9: 10 | N9: 57.8 %
B10: 1986 | C10: 6. | D10: KiU | E10: 18 | F10: 1 | G10: 8 | H10: 17 | I10: 69 | J10: 32 | K10: 13 | L10: 15 | M10: 9 | N10: 47.3 % | U10: 5 | V10: 0 | W10: 1 | X10: 1 | Y10: 14 | Z10: 47.3 % | AG10: Loppusarja 6.
B11: 1987 | C11: 11. | D11: RPL | E11: 22 | F11: 1 | G11: 7 | H11: 13 | I11: 80 | J11: 37 | K11: 20 | L11: 15 | M11: 8 | N11: 47.3 %
B12: 1988 | C12: 7. | D12: KPL | E12: 22 | F12: 0 | G12: 2 | H12: 10 | I12: 65 | J12: 38 | K12: 22 | L12: 3 | M12: 2 | N12: 50.0 % | U12: 2 | V12: 0 | W12: 1 | X12: 0 | Y12: 8 | Z12: 72.7 % | AG12: 0-2 AA
B13: 1989 | C13: 8. | D13: KPL | E13: 21 | F13: 1 | G13: 3 | H13: 18 | I13: 90 | J13: 40 | K13: 32 | L13: 14 | M13: 4 | N13: 57.7 % | Q13: 26.
B14: 1990 | C14: 12. | D14: KPL | E14: 24 | F14: 0 | G14: 5 | H14: 12 | I14: 68 | J14: 40 | K14: 17 | L14: 6 | M14: 5 | N14: 42.1 %
B15: 1991
B16: 1992 | C16: 6. | D16: HaKi | F16: ykköspesis
B17: 1993 | C17: 2. | D17: HaKi | F17: ykköspesis
B18: Yhteensä | E18: 194 | F18: 4 | G18: 51 | H18: 119 | I18: 640 | J18: 288 | K18: 183 | L18: 114 | M18: 55 | N18: 48.9 % | P18: 0-0-0 | Q18: 0-0-0 | R18: 0-0-0 | S18: 0-0-0 | U18: 16 | V18: 0 | W18: 7 | X18: 4 | Y18: 44 | Z18: 48.4 % | AB18: 0-0-0 | AC18: 0-0-0 | AD18: 0-0-0 | AE18: 0-0-0 | AG18: 0/1 | AH18: 0/0 | AI18: 0/0 | AJ18: 0/0 | AL18: 0 | AM18: 0 | AN18: 0 | AO18: 0 | AP18: 0 | AQ18: 0
AG19: 0.0 % | AH19: 0.0 % | AI19: 0.0 % | AJ19: 0.0 %
B20: Pesispörssi | D20: 433.7
B22: URA SUPERISSA | E22: OTT | F22: KUN | G22: LÖI | H22: TOI | I22: KL | K22: ka/L | L22: ka/T | M22: ka/KL | N22: KL-% | P22: ENSIMMÄISET RUNKOSARJASSA | AG22: ENSIMMÄISET PUDOTUSPELEISSÄ | AL22: YLEISÖ
B23: Runkosarja | E23: 194 | F23: 4 | G23: 51 | H23: 119 | I23: 640 | K23: 0.28 | L23: 0.61 | M23: 3.30 | N23: 48.9 % | P23: Ottelu | R23: 04.05. 1980 SMJ - IPV 1-0 | X23: 1. ottelu | AB23: 19 v 0 kk 17 pv | AG23: Ottelu | AH23: 1. 22.08. 1984 KiU - HoNsU 8-10 | AL23: 2314 | AN23: 23 v 4 kk 5 pv
B24: Ylempi loppusarja | E24: 16 | F24: 0 | G24: 7 | H24: 4 | I24: 44 | K24: 0.44 | L24: 0.25 | M24: 2.75 | N24: 48.4 % | P24: Lyöty | R24: 28.05. 1980 IPV - KPL 2-3 | X24: 5. ottelu | AB24: 19 v 1 kk 11 pv | AG24: Lyöty | AH24: 4. 02.09. 1984 KiU - AA 8-2 | AL24: 1084 | AN24: 23 v 4 kk 16 pv
B25: Alempi loppusarja | E25: 15 | F25: 0 | G25: 5 | H25: 12 | I25: 29 | K25: 0.33 | L25: 0.80 | M25: 1.93 | N25: 69.7 % | P25: Tuotu | R25: 25.05. 1980 IiU - IPV 6-8 | X25: 4. ottelu | AB25: 19 v 1 kk 8 pv | AG25: Tuotu | AH25: 3. 29.08. 1984 KiU - Kiri 9-11 | AL25: 2045 | AN25: 23 v 4 kk 12 pv
B26: KAIKKI | E26: 225 | F26: 4 | G26: 63 | H26: 135 | I26: 713 | K26: 0.30 | L26: 0.60 | M26: 3.17 | N26: 49.4 % | P26: Kunnari | R26: 12.06. 1983 IPV - Kiri 5-9 | X26: 50. ottelu | AB26: 22 v 1 kk 26 pv | AG26: Kunnari
B28: Seurat | D28: IPV = Imatran Pallo-Veikot (1955)
D29: KiU = Kiteen Urheilijat (1931)
D30: RPL = Riihimäen Pallonlyöjät (1924)
D31: KPL = Kouvolan Pallonlyöjät (1931)
D32: HaKi = Hakunilan Kisa (1978)

Sheet MYP, MSS
B1: Ilpo Luukkonen | E1: 17.4.1961
B2: YKKÖSPESIS | E2: Runkosarja | L2: Runkosarja TOP-10 | Q2: Jatkosarjat | X2: SUOMENSARJA | AA2: Runkosarja | AH2: Runkosarja TOP-10 | AM2: Jatkosarjat
B3: Vuosi | C3: Sija | D3: Seura | E3: OTT | F3: KUN | G3: LÖI | H3: TOI | I3: KL | J3: KL-% | L3: LÖI | M3: TOI | N3: L+T | O3: KL | Q3: OTT | R3: KUN | S3: LÖI | T3: TOI | U3: KL | V3: KL-% | X3: Vuosi | Y3: Sija | Z3: Seura | AA3: OTT | AB3: KUN | AC3: LÖI | AD3: TOI | AE3: KL | AF3: KL-% | AH3: LÖI | AI3: TOI | AJ3: L+T | AK3: KL | AM3: OTT | AN3: KUN | AO3: LÖI | AP3: TOI | AQ3: KL | AR3: KL-%
X4: 1981 | Y4: 1. | Z4: IPV 2
B6: 1992 | C6: 6. | D6: HaKi | E6: 26 | F6: 3 | G6: 12 | H6: 39 | I6: 159 | M6: 8. | O6: 7.
B7: 1993 | C7: 2. | D7: HaKi | E7: 24 | F7: 1 | G7: 11 | H7: 16 | I7: 102
B8: YHTEENSÄ | E8: =SUM(E4:E7) -> 50 | F8: =SUM(F4:F7) -> 4 | G8: =SUM(G4:G7) -> 23 | H8: =SUM(H4:H7) -> 55 | I8: =SUM(I4:I7) -> 261 | J8: 0.0 % | K8: =SUM(K4:K7) -> 0 | Q8: =SUM(Q4:Q7) -> 0 | R8: =SUM(R4:R7) -> 0 | S8: =SUM(S4:S7) -> 0 | T8: =SUM(T4:T7) -> 0 | U8: =SUM(U4:U7) -> 0 | V8: 0.0 % | W8: =SUM(W4:W7) -> 0 | X8: YHTEENSÄ | AA8: =SUM(AA4:AA7) -> 0 | AB8: =SUM(AB4:AB7) -> 0 | AC8: =SUM(AC4:AC7) -> 0 | AD8: =SUM(AD4:AD7) -> 0 | AE8: =SUM(AE4:AE7) -> 0 | AF8: 0.0 % | AG8: =SUM(AG4:AG7) -> 0 | AM8: =SUM(AM4:AM7) -> 0 | AN8: =SUM(AN4:AN7) -> 0 | AO8: =SUM(AO4:AO7) -> 0 | AP8: =SUM(AP4:AP7) -> 0 | AQ8: =SUM(AQ4:AQ7) -> 0 | AR8: 0.0 % | AS8: =SUM(AS4:AS7) -> 0
B10: KAIKKI OTTELUT | E10: OTT | F10: KUN | G10: LÖI | H10: TOI | I10: KL | J10: KL-% | L10: ka/L | M10: ka/T | N10: ka/l+t | O10: ka/kl | R10: Seurat | T10: IPV = Imatran Pallo-Veikot (1955)
B11: SUPERPESIS | E11: 225 | F11: 4 | G11: 63 | H11: 135 | I11: 713 | J11: 49.4 % | K11: =PRODUCT(I11/J11) -> 1443.319838 | L11: =PRODUCT((F11+G11)/E11) -> 0.30 | M11: =PRODUCT(H11/E11) -> 0.60 | N11: =PRODUCT((F11+G11+H11)/E11) -> 0.90 | O11: =PRODUCT(I11/E11) -> 3.17 | T11: KiU = Kiteen Urheilijat (1931)
B12: YKKÖSPESIS | E12: =PRODUCT(E8+Q8) -> 50 | F12: =PRODUCT(F8+R8) -> 4 | G12: =PRODUCT(G8+S8) -> 23 | H12: =PRODUCT(H8+T8) -> 55 | I12: =PRODUCT(I8+U8) -> 261 | J12: 0.0 % | K12: =PRODUCT(K8+W8) -> 0 | L12: =PRODUCT((F12+G12)/E12) -> 0.54 | M12: =PRODUCT(H12/E12) -> 1.10 | N12: =PRODUCT((F12+G12+H12)/E12) -> 1.64 | O12: =PRODUCT(I12/E12) -> 5.22 | T12: RPL = Riihimäen Pallonlyöjät (1924)
B13: SUOMENSARJA | E13: =PRODUCT(AA8+AM8) -> 0 | F13: =PRODUCT(AB8+AN8) -> 0 | G13: =PRODUCT(AC8+AO8) -> 0 | H13: =PRODUCT(AD8+AP8) -> 0 | I13: =PRODUCT(AE8+AQ8) -> 0 | J13: 0.0 % | K13: =PRODUCT(AG8+AS8) -> 0 | L13: 0.00 | M13: 0.00 | N13: 0.00 | O13: 0.00 | T13: KPL = Kouvolan Pallonlyöjät (1931)
B14: YHTEENSÄ | E14: =SUM(E11:E13) -> 275 | F14: =SUM(F11:F13) -> 8 | G14: 86 | H14: 190 | I14: 974 | J14: 0.0 % | K14: =SUM(K11:K13) -> 1443.319838 | L14: =PRODUCT((F14+G14)/E14) -> 0.34 | M14: =PRODUCT(H14/E14) -> 0.69 | N14: =PRODUCT((F14+G14+H14)/E14) -> 1.03 | O14: =PRODUCT(I14/E14) -> 3.54 | T14: HaKi = Hakunilan Kisa (1978)

Sheet Arvo-ottelut
B1: ITÄ - LÄNSI - KORTTI
B2: Ilpo Luukkonen | C2: 17.4.1961
B3: B-POJAT | C3: Itä - Länsi, tulos | D3: Joukkue | E3: Seura | G3: V | H3: T | I3: H | J3: Up. | K3: Lj. | L3: Palk. | M3: O | N3: K | O3: L | P3: T | Q3: KL | R3: 1 | S3: 2 | T3: 3 | U3: k | V3: KL-% | W3: Pelinjohtaja | X3: Yleisöä
B4: 19.08. 1978 Nurmo | C4: 9-7 | D4: Itä | E4: IPV | G4: 1 | J4: 2p | K4: 4 | M4: 1 | O4: 1 | W4: Seppo Huuskonen
B6: A-POJAT | C6: Itä - Länsi, tulos | D6: Joukkue | E6: Seura | G6: V | H6: T | I6: H | J6: Up. | K6: Lj. | L6: Palk. | M6: O | N6: K | O6: L | P6: T | Q6: KL | R6: 1 | S6: 2 | T6: 3 | U6: k | V6: KL-% | W6: Pelinjohtaja | X6: Yleisöä
B7: 14.07. 1979 Tohmajärvi | C7: 10-3 | D7: Itä | E7: IPV | G7: 1 | J7: 2p | K7: 2 | L7: kp | M7: 1 | O7: 3 | P7: 1 | W7: Ari Turppo | X7: 250
B8: 12.07. 1980 Alajärvi | C8: 5-13 | D8: Itä | E8: IPV | I8: 1 | J8: 3p | K8: 2 | L8: III p | M8: 1 | O8: 1 | W8: Harri Haka | X8: 350
B9: Yhteensä | G9: 1 | I9: 1 | M9: 2 | O9: 4 | P9: 1

Sheet Kärkilyönnit
B1: KÄRKILYÖNNIT RUNKOSARJASSA | V1: VUOSITTAISET SIJOITUKSET TOP - 30
G2: 0 > 1 | J2: 1 > 2 | M2: 2 > 3 | P2: 3 > k | S2: Yhteensä
B3: Vuosi | C3: Sija | D3: Seura | E3: OTT | F3: KL | G3: YHT | H3: % | I3: KL | J3: YHT | K3: % | L3: KL | M3: YHT | N3: % | O3: KL | P3: YHT | Q3: % | R3: KL | S3: YHT | T3: % | V3: Vuosi | W3: Sija | X3: Seura | Y3: 0 > 1 | Z3: 1 > 2 | AA3: 2 > 3 | AB3: 3 > k | AC3: KL
B4: 1980 | C4: 10. | D4: IPV | E4: 16 | F4: 15 | G4: =PRODUCT(F4/H4) -> 32 | H4: 46.4 % | I4: 13 | J4: =PRODUCT(I4/K4) -> 24 | K4: 54.2 % | L4: 5 | M4: =PRODUCT(L4/N4) -> 18 | N4: 28.6 % | O4: 3 | P4: =PRODUCT(O4/Q4) -> 13 | Q4: 23.1 % | R4: 36 | S4: =PRODUCT(G4+J4+M4+P4) -> 87 | T4: 41.8 % | V4: 1980 | W4: 10. | X4: IPV
B5: 1981 | V5: 1981
B6: 1982 | C6: 2. | D6: IPV | E6: 13 | F6: 8 | G6: 22 | H6: =PRODUCT(F6/G6) -> 36.4 % | I6: 9 | J6: 21 | K6: =PRODUCT(I6/J6) -> 42.9 % | L6: 12 | M6: 17 | N6: =PRODUCT(L6/M6) -> 70.6 % | O6: 5 | P6: 12 | Q6: =PRODUCT(O6/P6) -> 41.7 % | R6: 34 | S6: 72 | T6: =PRODUCT(R6/S6) -> 47.2 % | V6: 1982 | W6: 2. | X6: IPV
B7: 1983 | C7: 7. | D7: IPV | E7: 22 | F7: 29 | G7: 60 | H7: =PRODUCT(F7/G7) -> 48.3 % | I7: 25 | J7: 47 | K7: =PRODUCT(I7/J7) -> 53.2 % | L7: 17 | M7: 26 | N7: =PRODUCT(L7/M7) -> 65.4 % | O7: 8 | P7: 35 | Q7: =PRODUCT(O7/P7) -> 22.9 % | R7: 79 | S7: 168 | T7: =PRODUCT(R7/S7) -> 47.0 % | V7: 1983 | W7: 7. | X7: IPV | Y7: 27.
B8: 1984 | C8: 4. | D8: KiU | E8: 14 | F8: 5 | G8: 14 | H8: =PRODUCT(F8/G8) -> 35.7 % | I8: 9 | J8: 20 | K8: =PRODUCT(I8/J8) -> 45.0 % | L8: 4 | M8: 7 | N8: =PRODUCT(L8/M8) -> 57.1 % | O8: 1 | P8: 9 | Q8: =PRODUCT(O8/P8) -> 11.1 % | R8: 19 | S8: 50 | T8: 38.0 % | V8: 1984 | W8: 4. | X8: KiU
B9: 1985 | C9: 5. | D9: KiU | E9: 22 | F9: 44 | G9: 69 | H9: =PRODUCT(F9/G9) -> 63.8 % | I9: 23 | J9: 39 | K9: =PRODUCT(I9/J9) -> 59.0 % | L9: 23 | M9: 33 | N9: =PRODUCT(L9/M9) -> 69.7 % | O9: 10 | P9: 32 | Q9: =PRODUCT(O9/P9) -> 31.3 % | R9: 100 | S9: 173 | T9: 57.8 % | V9: 1985 | W9: 5. | X9: KiU | Y9: 15.
B10: 1986 | C10: 6. | D10: KiU | E10: 18 | F10: 32 | G10: 61 | H10: =PRODUCT(F10/G10) -> 52.5 % | I10: 13 | J10: 24 | K10: =PRODUCT(I10/J10) -> 54.2 % | L10: 15 | M10: 26 | N10: =PRODUCT(L10/M10) -> 57.7 % | O10: 9 | P10: 35 | Q10: =PRODUCT(O10/P10) -> 25.7 % | R10: =PRODUCT(F10+I10+L10+O10) -> 69 | S10: 146 | T10: 47.3 % | V10: 1986 | W10: 6. | X10: KiU
B11: 1987 | C11: 11. | D11: RPL | E11: 22 | F11: 37 | I11: 20 | L11: 15 | O11: 8 | R11: =PRODUCT(F11+I11+L11+O11) -> 80 | S11: 169 | T11: =PRODUCT(R11/S11) -> 47.3 % | V11: 1987 | W11: 11. | X11: RPL | Y11: 24.
B12: 1988 | C12: 6. | D12: KPL | E12: 22 | F12: 38 | G12: 69 | H12: =PRODUCT(F12/G12) -> 55.1 % | I12: 22 | J12: 36 | K12: =PRODUCT(I12/J12) -> 61.1 % | L12: 3 | M12: 15 | N12: =PRODUCT(L12/M12) -> 20.0 % | O12: 2 | P12: 10 | Q12: =PRODUCT(O12/P12) -> 20.0 % | R12: =PRODUCT(F12+I12+L12+O12) -> 65 | S12: 130 | T12: 50.0 % | V12: 1988 | W12: 6. | X12: KPL | Y12: 21.
B13: 1989 | C13: 8. | D13: KPL | E13: 21 | F13: 40 | I13: 32 | L13: 14 | O13: 4 | R13: =PRODUCT(F13+I13+L13+O13) -> 90 | S13: 156 | T13: =PRODUCT(R13/S13) -> 57.7 % | V13: 1989 | W13: 8. | X13: KPL | Y13: 18. | Z13: 25.
B14: 1990 | C14: 10. | D14: KPL | E14: 24 | F14: 40 | G14: 90 | H14: =PRODUCT(F14/G14) -> 44.4 % | I14: 17 | J14: 40 | K14: =PRODUCT(I14/J14) -> 42.5 % | L14: 6 | M14: 21 | N14: =PRODUCT(L14/M14) -> 28.6 % | O14: 5 | P14: 8 | Q14: =PRODUCT(O14/P14) -> 62.5 % | R14: 68 | S14: 159 | T14: =PRODUCT(R14/S14) -> 42.8 % | V14: 1990 | W14: 10. | X14: KPL
B15: Yhteensä | E15: =SUM(E4:E14) -> 194 | F15: =SUM(F4:F14)-77 -> 211 | G15: =SUM(G4:G14) -> 417 | H15: =PRODUCT(F15/G15) -> 50.6 % | I15: =SUM(I4:I14)-52 -> 131 | J15: =SUM(J4:J14) -> 251 | K15: =PRODUCT(I15/J15) -> 52.2 % | L15: =SUM(L4:L14)-29 -> 85 | M15: =SUM(M4:M14) -> 163 | N15: =PRODUCT(L15/M15) -> 52.3 % | O15: =SUM(O4:O14)-12 -> 43 | P15: =SUM(P4:P14) -> 154 | Q15: =PRODUCT(O15/P15) -> 27.9 % | R15: =SUM(R4:R14) -> 640 | S15: =SUM(S4:S14) -> 1309.807692 | T15: =PRODUCT(R15/S15) -> 48.9 %
B17: KÄRKILYÖNNIT YLEMMISSÄ PUDOTUSPELEISSÄ | V17: VUOSITTAISET SIJOITUKSET TOP - 30
G18: 0 > 1 | J18: 1 > 2 | M18: 2 > 3 | P18: 3 > k | S18: Yhteensä
B19: Vuosi | C19: Sija | D19: Seura | E19: OTT | F19: KL | G19: YHT | H19: % | I19: KL | J19: YHT | K19: % | L19: KL | M19: YHT | N19: % | O19: KL | P19: YHT | Q19: % | R19: KL | S19: YHT | T19: % | V19: Vuosi | W19: Sija | X19: Seura | Y19: 0 > 1 | Z19: 1 > 2 | AA19: 2 > 3 | AB19: 3 > k | AC19: KL
B20: 1980 | C20: 8. | D20: IPV | V20: 1980 | W20: 8. | X20: IPV
B21: 1981 | V21: 1981
B22: 1982 | C22: 4. | D22: IPV | E22: 5 | F22: 2 | G22: 3 | H22: 66.7 % | I22: 1 | J22: 3 | K22: 33.3 % | L22: 5 | M22: 6 | N22: 83.3 % | O22: 4 | P22: 12 | Q22: 33.3 % | R22: 12 | S22: 24 | T22: 50.0 % | V22: 1982 | W22: 4. | X22: IPV | AA22: 24. | AB22: 12.
B23: 1983 | C23: 7. | D23: IPV | V23: 1983 | W23: 7. | X23: IPV
B24: 1984 | C24: 4. | D24: KiU | E24: 4 | F24: 4 | G24: 11 | H24: 36.4 % | I24: 2 | J24: 6 | K24: 33.3 % | L24: 3 | M24: 7 | N24: 42.9 % | O24: 1 | P24: 1 | Q24: 100.0 % | R24: 10 | S24: 25 | T24: 40.0 % | V24: 1984 | W24: 4. | X24: KiU | Y24: 27.
B25: 1985 | C25: 5. | D25: KiU | V25: 1985 | W25: 5. | X25: KiU
B26: 1986 | C26: 6. | D26: KiU | E26: 5 | F26: 6 | G26: 11 | H26: 54.5 % | I26: 3 | J26: 6 | K26: 50.0 % | L26: 4 | M26: 9 | N26: 44.4 % | O26: 1 | P26: 5 | Q26: 20.0 % | R26: 14 | S26: 31 | T26: 45.2 % | V26: 1986 | W26: 6. | X26: KiU | Y26: 23.
B27: 1987 | C27: 11. | D27: RPL | V27: 1987 | W27: 11. | X27: RPL
B28: 1988 | C28: 7. | D28: KPL | E28: 2 | F28: 4 | G28: 4 | H28: 100.0 % | I28: 2 | J28: 4 | K28: 50.0 % | L28: 1 | M28: 2 | N28: 50.0 % | O28: 1 | P28: 1 | Q28: 100.0 % | R28: 8 | S28: 11 | T28: 72.7 % | V28: 1988 | W28: 7. | X28: KPL
B29: 1989 | C29: 8. | D29: KPL | V29: 1989 | W29: 8. | X29: KPL
B30: 1990 | C30: 12. | D30: KPL | V30: 1990 | W30: 12. | X30: KPL
B31: Yhteensä | E31: =SUM(E18:E30) -> 16 | F31: =SUM(F20:F30) -> 16 | G31: =SUM(G20:G30) -> 29 | H31: =PRODUCT(F31/G31) -> 55.2 % | I31: =SUM(I20:I30) -> 8 | J31: =SUM(J20:J30) -> 19 | K31: =PRODUCT(I31/J31) -> 42.1 % | L31: =SUM(L20:L30) -> 13 | M31: =SUM(M20:M30) -> 24 | N31: =PRODUCT(L31/M31) -> 54.2 % | O31: =SUM(O20:O30) -> 7 | P31: =SUM(P20:P30) -> 19 | Q31: =PRODUCT(O31/P31) -> 36.8 % | R31: =SUM(R20:R30) -> 44 | S31: =SUM(S20:S30) -> 91 | T31: =PRODUCT(R31/S31) -> 48.4 %
B33: KÄRKILYÖNNIT
G34: 0 > 1 | J34: 1 > 2 | M34: 2 > 3 | P34: 3 > k | S34: Yhteensä
E35: OTT | F35: KL | G35: YHT | H35: % | I35: KL | J35: YHT | K35: % | L35: KL | M35: YHT | N35: % | O35: KL | P35: YHT | Q35: % | R35: KL | S35: YHT | T35: %
B36: RUNKOSARJA | E36: =PRODUCT(E15) -> 194 | F36: =PRODUCT(F15) -> 211 | G36: =PRODUCT(G15) -> 417.3076923 | H36: =PRODUCT(H15) -> 50.6 % | I36: =PRODUCT(I15) -> 131 | J36: =PRODUCT(J15) -> 251 | K36: =PRODUCT(K15) -> 52.2 % | L36: =PRODUCT(L15) -> 85 | M36: =PRODUCT(M15) -> 162.5 | N36: =PRODUCT(N15) -> 52.3 % | O36: =PRODUCT(O15) -> 43 | P36: =PRODUCT(P15) -> 154 | Q36: =PRODUCT(Q15) -> 27.9 % | R36: =PRODUCT(R15) -> 640 | S36: =PRODUCT(S15) -> 1309.807692 | T36: =PRODUCT(T15) -> 48.9 %
B37: PLAY OFF | E37: =PRODUCT(E31) -> 16 | F37: =PRODUCT(F31) -> 16 | G37: 29 | H37: 55.2 % | I37: 8 | J37: 19 | K37: 42.1 % | L37: 13 | M37: 24 | N37: 54.2 % | O37: 7 | P37: 19 | Q37: 36.8 % | R37: 44 | S37: 91 | T37: 48.4 %
